[Event "29th Bosnjaci Open 2025"]
[Site "Bosnjaci"]
[Date "2025.01.04"]
[Round "2.10"]
[White "Zufic, Miroslav"]
[Black "Kejzar, Petra"]
[Result "1-0"]
[ECO "B30"]
[WhiteElo "2313"]
[BlackElo "2040"]
[Annotator "TA"]
[PlyCount "79"]
[EventDate "2025.01.04"]
[EventType "swiss"]
[EventCountry "CRO"]
[SourceTitle "playchess.com"]
[Source "ChessBase"]
[SourceQuality "1"]
[TimeControl "5400+30"]

{[%evp 9,79,12,38,44,73,0,28,23,26,22,16,26,39,18,29,-7,170,174,180,166,174,177,207,210,210,202,195,214,189,186,192,191,184,175,177,173,195,160,188,171,204,170,193,187,202,201,192,197,228,242,213,218,221,179,235,216,281,246,235,225,527,513,514,555,572,543,516,513,527,530,2107,1612]} 1. e4 {[%emt 0:00:11]} c5 {[%emt 0:02:08]} 2. Nf3 {[%emt 0:00:06]} Nc6 {[%emt 0:00:04]} 3. Bb5 {[%emt 0:01:05]} e6 {[%emt 0:00:25]} 4. O-O {[%emt 0:00:24]} Nge7 {[%emt 0:00:43]} 5. Re1 {[%emt 0:00:44]} b6 {[%emt 0:01:31]} 6. c3 {[%emt 0:00:25]} a6 {[%emt 0:00:13]} 7. Be2 {[%emt 0:01:00] White is more active.} ({Better is} 7. Ba4 $16) 7... d5 {[%emt 0:06:23]} 8. exd5 {[%emt 0:02:00]} Nxd5 {[%emt 0:00:22]} 9. d4 {[%emt 0:00:15]} cxd4 {[%emt 0:05:01]} 10. Nxd4 {[%emt 0:00:26]} Bb7 {[%emt 0:11:32]} 11. Bf3 {[%emt 0:03:16][%cal Od4e6,Be2f3,Bf3d5,Bd5e6][%mdl 32]} Be7 $1 {[%emt 0:05:40]} 12. a3 {[%emt 0:24:56]} (12. Nf5 $5 O-O 13. h3 $11) 12... Bf6 $2 {[%emt 0:09:36] [#]} (12... Na5 $11 {and Black is okay.}) 13. Nxe6 $1 $18 {[%emt 0:01:08][%mdl 512]} fxe6 {[%emt 0:00:47]} 14. Qxd5 {[%emt 0:01:39]} (14. Bxd5 O-O 15. Bxe6+ (15. Rxe6 Kh8 $18) 15... Kh8 $16) 14... Qxd5 {[%emt 0:01:42]} 15. Bxd5 {[%emt 0:00:04]} O-O-O {[%emt 0:02:01][%cal Be8c8,Bc8b8,Bb8a7][%mdl 32]} 16. Bxe6+ {[%emt 0:02:42]} Kb8 {[%emt 0:00:07]} 17. Bf4+ {[%emt 0:00:44]} Ka7 {[%emt 0:00:40]} 18. Nd2 {[%emt 0:02:55][%cal Bb1d2,Bd2f1,Bf1g3][%mdl 32]} Ne5 {[%emt 0:07:36]} 19. Bf5 {[%emt 0:19:01]} (19. Rxe5 Bxe5 20. Bxe5 Rxd2 21. Bxg7 Re8 $11 (21... Rhd8 22. Bd4 $14)) 19... Nd3 {[%emt 0:07:10]} 20. Bxd3 {[%emt 0:02:38]} Rxd3 {[%emt 0:00:08]} 21. Be3 {[%emt 0:02:45]} Bd5 {[%emt 0:01:41][%cal Bb7d5,Bd5b3,Bb3a4,Ba4c6][%mdl 32]} 22. Nf1 {[%emt 0:00:57]} Bb3 {[%emt 0:00:39]} 23. Ng3 {[%emt 0:07:04]} Rg8 {[%emt 0:03:53]} 24. Ne2 {[%emt 0:00:38] Hoping for Nc1.} Ba4 {[%emt 0:01:30]} 25. Nd4 {[%emt 0:05:48]} Re8 {[%emt 0:02:40]} 26. Kf1 {[%emt 0:06:27]} Bxd4 {[%emt 0:01:27]} 27. Bxd4 {[%emt 0:00:10]} Rd2 {[%emt 0:05:59]} 28. b3 {[%emt 0:03:50]} (28. Bxg7 Rxb2 29. Rxe8 Bxe8 $18) 28... Bc6 {[%emt 0:03:33]} 29. Rxe8 {[%emt 0:01:52]} (29. Bxg7 a5 30. h4 Rxe1+ 31. Rxe1 Ra2 $18) 29... Bxe8 {[%emt 0:00:02][%mdl 4096] Endgame KRB-KRB. White is two pawns up.} 30. Re1 {[%emt 0:00:52]} (30. Bxg7 a5 31. Re1 Bc6 $18) 30... Bb5+ {[%emt 0:00:20]} 31. Kg1 {[%emt 0:00:31]} g6 {[%emt 0:00:27]} (31... Re2 {might work better.} 32. Rxe2 Bxe2 33. Bxg7 Bd1) 32. a4 {[%emt 0:00:26][%cal Ba3a4,Ba4a5,Ba5b6][%mdl 32]} ({Weaker is} 32. Re7+ Kb8 33. h4 (33. Bxb6 $2 {gets mated.} Rd1+) 33... h5 34. Bxb6 Bd3 $18) 32... Re2 {[%emt 0:01:04]} 33. Rxe2 {[%emt 0:01:20]} Bxe2 {[%emt 0:00:01] KB-KB. White is two pawns up.} 34. a5 {[%emt 0:00:05]} Bd1 $2 {[%emt 0:00:17]} (34... Kb7 35. Bxb6 (35. axb6 a5 $18) 35... Kc6) 35. axb6+ {[%emt 0:01:19]} Kb7 {[%emt 0:00:01]} 36. b4 {[%emt 0:00:07]} Be2 {[%emt 0:00:26]} 37. f3 {[%emt 0:00:27]} Bc4 {[%emt 0:00:08]} 38. Kf2 {[%emt 0:00:08]} Bd5 {[%emt 0:00:17]} 39. Kg3 {[%emt 0:02:05]} g5 {[%emt 0:02:14]} 40. Kg4 {[%emt 0:00:49]} 1-0

[Event "29th Bosnjaci Open 2025"]
[Site "Bosnjaci"]
[Date "2025.01.04"]
[Round "2.11"]
[White "Valkovic, Kristian"]
[Black "Kovac, Petar"]
[Result "0-1"]
[ECO "D02"]
[WhiteElo "2033"]
[BlackElo "2289"]
[Annotator "TA"]
[PlyCount "58"]
[EventDate "2025.01.04"]
[EventType "swiss"]
[EventCountry "CRO"]
[SourceTitle "playchess.com"]
[Source "ChessBase"]
[SourceQuality "1"]
[TimeControl "5400+30"]

{[%evp 15,58,-22,-10,-12,-13,-91,-43,-47,-33,-89,-89,-83,-98,-131,-135,-234,-236,-241,-240,-235,-188,-271,-208,-250,-246,-429,-425,-446,-448,-400,-371,-387,-390,-471,-468,-450,-462,-553,-546,-610,-610,-638,-630,-606,-543]} 1. d4 {[%emt 0:12:48]} Nf6 {[%emt 0:00:07]} 2. Nf3 {[%emt 0:00:06]} d5 {[%emt 0:00:17]} 3. Bf4 {[%emt 0:00:07]} c5 {[%emt 0:00:16]} 4. c3 {[%emt 0:02:17]} Nc6 {[%emt 0:02:59]} 5. e3 {[%emt 0:02:24]} Qb6 {[%emt 0:01:08]} 6. Qb3 {[%emt 0:03:08]} c4 {[%emt 0:00:18]} 7. Qxb6 {[%emt 0:00:05]} axb6 {[%emt 0:00:05]} 8. Na3 {[%emt 0:00:06]} Bf5 {[%emt 0:03:32]} 9. Nh4 {[%emt 0:00:50]} Bd7 {[%emt 0:05:29]} 10. Be2 {[%emt 0:17:48] [#]} (10. Nf3 $11 {remains equal.}) 10... Rxa3 $1 {[%emt 0:33:29]} 11. bxa3 $15 {[%emt 0:00:41] Black is slightly better.} Ne4 {[%emt 0:00:20][%cal Oe7e6] And now ...e6! would win.} 12. Bf3 {[%emt 0:17:56]} (12. Nf3 $15) 12... Rg8 $17 {[%emt 0:13:31] Black is more active. Black keeps a firm grip on the game.} 13. Bxe4 {[%emt 0:10:46]} dxe4 {[%emt 0:00:12]} 14. d5 {[%emt 0:05:05] [#]} Nd8 {[%emt 0:00:40]} 15. f3 {[%emt 0:07:07]} (15. Bc7 $17 g5 16. Nf3 (16. Bxd8 $2 Kxd8 17. Nf3 exf3 $19) 16... exf3 17. gxf3) 15... g5 $19 {[%emt 0:00:21]} 16. fxe4 {[%emt 0:00:23]} gxh4 {[%emt 0:06:27]} 17. O-O {[%emt 0:00:49]} Ba4 {[%emt 0:08:17] Hoping for ...Bc2.} 18. Bc7 {[%emt 0:01:17]} (18. Rf2 $142) 18... f6 {[%emt 0:03:51]} 19. Bxb6 {[%emt 0:00:51]} Nf7 {[%emt 0:00:49]} 20. Bd4 $2 {[%emt 0:01:32]} (20. Rac1) 20... Bc2 {[%emt 0:01:14]} 21. Rf4 {[%emt 0:00:22]} Ng5 {[%emt 0:00:12] aiming for ...Nh3+.} 22. Kf1 {[%emt 0:02:55] White is weak on the light squares} h3 {[%emt 0:01:34]} ({Don't do} 22... Nxe4 23. Rxh4 Rg5 24. Kg1 $19) 23. g3 {[%emt 0:00:36]} Bxe4 {[%emt 0:00:22]} ({Don't take} 23... Nxe4 24. Ke1 $19) 24. Rd1 {[%emt 0:04:41]} Bxd5 {[%emt 0:02:52] Black is clearly winning.} 25. Bb6 {[%emt 0:00:50]} Bg2+ {[%emt 0:01:37]} 26. Kg1 {[%emt 0:00:14]} Nf3+ {[%emt 0:01:22]} 27. Kf2 {[%emt 0:00:09]} Nxh2 {[%emt 0:00:15]} 28. Rxc4 {[%emt 0:01:19]} Ng4+ {[%emt 0:00:13]} 29. Kg1 {[%emt 0:00:09]} Bf3 {[%emt 0:00:24] Weighted Error Value: White=0.43/Black=0.10 (very precise) .  Mistake:       	White=5     	Black=1      Inaccurate:     	White=1     	---        OK:         	White=4     	Black=12     Best:        	White=1     	---} 0-1

[Event "29th Bosnjaci Open 2025"]
[Site "Bosnjaci"]
[Date "2025.01.04"]
[Round "2.12"]
[White "Franc, Borna"]
[Black "Sabic, Tomislav"]
[Result "1/2-1/2"]
[ECO "B22"]
[WhiteElo "2287"]
[BlackElo "2021"]
[Annotator "RC"]
[PlyCount "71"]
[EventDate "2025.01.04"]
[EventType "swiss"]
[EventCountry "CRO"]
[SourceTitle "playchess.com"]
[Source "ChessBase"]
[SourceQuality "1"]
[TimeControl "5400+30"]

1. e4 {[%emt 0:01:50]} c5 {[%emt 0:00:21]} 2. c3 {[%emt 0:00:05]} d5 {[%emt 0:00:25]} 3. exd5 {[%emt 0:00:07]} Qd7 {[%emt 0:00:05]} 4. d6 Qxd6 {[%emt 0:00:31]} 5. d3 {[%emt 0:00:04]} Qd5 6. d4 {[%emt 0:00:59]} Nf6 {[%emt 0:00:58]} 7. Nf3 {[%emt 0:00:36]} Nc6 {[%emt 0:00:28]} 8. Be2 {[%emt 0:00:16]} e6 {[%emt 0:01:13]} 9. O-O {[%emt 0:02:08]} Be7 {[%emt 0:01:22]} 10. Be3 {[%emt 0:00:46]} cxd4 {[%emt 0:02:13]} 11. cxd4 {[%emt 0:01:37]} O-O {[%emt 0:01:10]} 12. Nc3 {[%emt 0:00:06]} Qa5 {[%emt 0:01:56]} 13. a3 {[%emt 0:08:39]} Nd5 {[%emt 0:08:04]} 14. Rc1 {[%emt 0:10:57]} Nxc3 {[%emt 0:09:47]} 15. Rxc3 {[%emt 0:00:10]} Bf6 {[%emt 0:01:59]} 16. Rc5 {[%emt 0:04:45]} Qd8 {[%emt 0:12:37]} 17. d5 {[%emt 0:10:46]} exd5 {[%emt 0:07:16]} 18. Rxd5 {[%emt 0:00:05]} Qc7 {[%emt 0:00:59]} 19. Bc5 {[%emt 0:00:59]} Be7 {[%emt 0:05:05]} 20. Qd3 {[%emt 0:25:33]} Rd8 {[%emt 0:16:07]} 21. Rxd8+ {[%emt 0:04:33]} Qxd8 {[%emt 0:03:34]} 22. Qe3 {[%emt 0:01:05]} Bxc5 {[%emt 0:04:51]} 23. Qxc5 {[%emt 0:00:05]} Qe7 {[%emt 0:00:02]} 24. Qxe7 {[%emt 0:03:33]} Nxe7 {[%emt 0:00:02]} 25. Bc4 {[%emt 0:00:14]} Bf5 {[%emt 0:11:27]} 26. Rd1 {[%emt 0:06:56]} Nc6 {[%emt 0:02:46]} 27. h3 {[%emt 0:02:13]} Rd8 {[%emt 0:02:28]} 28. Rc1 {[%emt 0:00:06]} Kf8 {[%emt 0:02:23]} 29. b4 {[%emt 0:00:13]} Nd4 {[%emt 0:01:48]} 30. Nxd4 {[%emt 0:00:53]} Rxd4 {[%emt 0:00:02]} 31. Be2 {[%emt 0:00:02]} Ke7 {[%emt 0:00:45]} 32. Bf3 {[%emt 0:00:49]} b6 {[%emt 0:00:36]} 33. Re1+ {[%emt 0:01:53]} Kd7 {[%emt 0:00:12]} 34. Rc1 {[%emt 0:01:17]} Rd3 {[%emt 0:02:22]} 35. Bb7 {[%emt 0:03:30]} Be6 {[%emt 0:01:10]} 36. Ra1 {[%emt 0:01:12]} 1/2-1/2

[Event "29th Bosnjaci Open 2025"]
[Site "Bosnjaci"]
[Date "2025.01.04"]
[Round "2.13"]
[White "Fridl, Miroslav"]
[Black "Zadravec, Matija"]
[Result "0-1"]
[ECO "A36"]
[WhiteElo "1992"]
[BlackElo "2283"]
[Annotator "TA"]
[PlyCount "84"]
[EventDate "2025.01.04"]
[EventType "swiss"]
[EventCountry "CRO"]
[SourceTitle "playchess.com"]
[Source "ChessBase"]
[SourceQuality "1"]
[TimeControl "5400+30"]

{[%evp 11,84,9,20,6,6,0,9,3,0,-12,0,0,0,4,9,-3,0,10,22,0,0,-33,0,0,10,-35,-40,-241,-249,-285,-280,-270,-64,-137,-89,-147,41,-169,-71,-58,-37,-58,-47,-93,-20,-37,-25,-31,-37,-50,-29,-23,0,0,0,0,0,0,0,0,0,0,0,0,0,-60,0,-2,-8,-8,-30,-960,-942,-29993,-29994]} 1. c4 {[%emt 0:00:04]} c5 {[%emt 0:00:27]} 2. Nc3 {[%emt 0:00:06]} Nc6 {[%emt 0:00:07]} 3. g3 {[%emt 0:00:06]} g6 {[%emt 0:00:06]} 4. Bg2 {[%emt 0:00:08]} Bg7 {[%emt 0:00:06]} 5. a3 {[%emt 0:00:23]} e6 {[%emt 0:01:40]} 6. Rb1 {[%emt 0:00:19]} a5 {[%emt 0:05:00]} 7. e3 {[%emt 0:01:24]} Nge7 {[%emt 0:04:44]} 8. Nge2 {[%emt 0:07:21]} O-O {[%emt 0:09:23]} 9. O-O {[%emt 0:03:45] The position is equal.} d5 {[%emt 0:01:26]} 10. d3 {[%emt 0:07:52]} Re8 {[%emt 0:08:51]} 11. e4 {[%emt 0:01:54]} dxc4 {[%emt 0:01:49]} 12. dxc4 {[%emt 0:00:40]} Nd4 {[%emt 0:00:16]} 13. Bg5 {[%emt 0:05:28][%cal Oe4e5]} h6 {[%emt 0:04:35]} 14. Be3 {[%emt 0:04:59]} Nec6 {[%emt 0:01:09]} 15. f4 {[%emt 0:10:13]} e5 {[%emt 0:06:56]} 16. h3 {[%emt 0:01:12] Prevents Bg4.} exf4 {[%emt 0:04:52]} 17. Nxf4 {[%emt 0:06:00]} Qd6 {[%emt 0:05:11]} 18. Qd2 {[%emt 0:03:40]} Ne5 {[%emt 0:04:38]} 19. Bxd4 $2 {[%emt 0:04:02]} (19. Nb5 $15 Nxb5 20. cxb5 Qxd2 21. Bxd2) 19... Nxc4 $1 $19 {[%emt 0:02:24]} (19... Qxd4+ 20. Qxd4 cxd4 21. Ncd5 $15) (19... cxd4 20. Nb5 Qc5 21. b4 axb4 (21... Qxc4 22. Nd6 $11) 22. axb4 Qxc4 (22... Nxc4 23. bxc5 Nxd2 24. Nc7 $15) 23. Nd6 $17 (23. Nxd4 $2 Ra2 $19)) 20. Qc1 {[%emt 0:00:57] [#] Bxg7 is the strong threat.} Bxd4+ {[%emt 0:03:38]} (20... Qxd4+ 21. Kh1 Qe5 22. Ncd5 $17) 21. Kh2 {[%emt 0:02:33]} Bd7 {[%emt 0:03:40] Prevents Nb5} (21... Ne3 22. Rf3 Nxg2 23. Nxg2 $19) (21... Nd2 $19 22. Qxd2 Bg1+ 23. Rxg1 Qxd2) 22. Nfd5 {[%emt 0:01:21]} (22. Ncd5 $1 $15 Bb5 23. Rd1) 22... Bg7 {[%emt 0:05:10] Black is much more active. This pair of bishops is nice.} (22... h5 $142 23. b4 axb4) 23. e5 {[%emt 0:04:45]} Rxe5 $2 {[%emt 0:08:43]} (23... Nxe5 24. Ne4 Qf8 (24... Qxd5 25. Nf6+ Bxf6 26. Bxd5 $16) (24... Nf3+ $2 25. Bxf3 Rxe4 26. Bxe4 $18) 25. Ndf6+ Kh8 26. Nxe8 Rxe8 27. Qxc5 $16 (27. Nxc5 Bb5 $15)) (23... Qxe5 $17 {...Bf5 would now be deadly.} 24. Ne4 Bf5 (24... Qxd5 25. Nf6+ Bxf6 26. Bxd5 $18)) 24. Ne4 $2 {[%emt 0:00:46]} (24. Qf4 $14 {is the one way to stay ahead.}) 24... Rxe4 {[%emt 0:00:40]} (24... Qxd5 $19 {has better winning chances.} 25. Nf6+ Bxf6 26. Bxd5 Rxd5 27. Rxf6 Nd2) 25. Bxe4 $17 {[%emt 0:00:29]} Ne5 {[%emt 0:02:22]} 26. Qc2 {[%emt 0:00:43]} Nc6 {[%emt 0:01:31]} 27. Nb6 {[%emt 0:06:58]} (27. Qf2 $15 f5 28. Bg2) 27... Re8 {[%emt 0:04:24]} (27... Nd4 $17 28. Qf2 Rf8 (28... Qxb6 29. Qxf7+ Kh7 30. Qxd7 $16) 29. Nxd7 Qxd7) 28. Nxd7 $11 {[%emt 0:05:00]} Qxd7 {[%emt 0:01:11]} 29. Bxc6 {[%emt 0:09:44]} Qxc6 {[%emt 0:00:06]} 30. Rbe1 {[%emt 0:01:46]} Rxe1 {[%emt 0:02:48]} 31. Rxe1 $15 {[%emt 0:00:09][%mdl 4096] Endgame. KQR-KQB} Bd4 {[%emt 0:00:28]} 32. a4 $1 {[%emt 0:01:56]} Kg7 {[%emt 0:01:21]} 33. Re2 {[%emt 0:04:37]} Qf3 {[%emt 0:01:11]} 34. Rg2 {[%emt 0:01:06]} b6 {[%emt 0:01:46]} 35. Qe2 {[%emt 0:00:11]} Qf6 {[%emt 0:00:18]} 36. b3 {[%emt 0:00:33]} Qf5 {[%emt 0:00:40]} 37. Qc2 {[%emt 0:00:26] Black must now prevent Qxf5.} Qf3 {[%emt 0:00:15]} 38. Rd2 {[%emt 0:02:10]} ({White should try} 38. Re2 $11) 38... h5 {[%emt 0:01:23]} (38... Be5 $15 39. Rg2 h5) 39. Rd3 {[%emt 0:00:32]} Qe4 {[%emt 0:01:20] Strongly threatening ...Be5.} 40. Rd2 {[%emt 0:00:28]} Qe3 {[%emt 0:00:22]} 41. Rg2 {[%emt 0:00:21][%mdl 8192] [#] Repels Qg1+} (41. h4 $11) 41... h4 $1 $19 {[%emt 0:00:37][%mdl 512] Threatens to win with ...hxg3+.} 42. Qe2 {[%emt 0:02:52]} (42. Qb1 hxg3+) 42... hxg3+ {[%emt 0:00:13] Weighted Error Value: White=0.54/Black=0.29 (precise) .  Loses game:     	White=3     	---        Missed win:     	---       	Black=1      Mistake:       	White=4     	Black=5      Inaccurate:     	White=3     	Black=1      OK:         	White=12    	Black=7      Best:        	White=1     	Black=1      Strong:       	White=1     	Black=1      Brilliant:      	---       	Black=1} (42... Qxb3 $2 43. gxh4 Qxa4 44. h5 $17) 0-1

[Event "29th Bosnjaci Open 2025"]
[Site "Bosnjaci"]
[Date "2025.01.04"]
[Round "2.14"]
[White "Jakovic, Roko"]
[Black "Vujnovic, Marko"]
[Result "1-0"]
[ECO "D30"]
[WhiteElo "2273"]
[BlackElo "1982"]
[Annotator "TA"]
[PlyCount "121"]
[EventDate "2025.01.04"]
[EventType "swiss"]
[EventCountry "CRO"]
[SourceTitle "playchess.com"]
[Source "ChessBase"]
[SourceQuality "1"]
[TimeControl "5400+30"]

{[%evp 9,121,17,19,18,21,18,24,20,32,38,78,72,74,77,107,99,104,106,108,125,125,123,116,15,12,-20,-18,-29,-12,-83,-78,-79,-73,-75,-89,-80,-52,-112,-112,-112,-98,-156,-143,-194,-177,-352,-180,-189,-166,-149,-138,-134,-72,-55,-54,-49,0,0,0,-157,70,70,70,70,69,69,68,80,122,25,172,172,272,272,272,272,446,439,431,431,669,431,424,424,417,416,875,414,376,0,897,282,1077,77,77,77,77,77,29952,29948,29965,29964,29966,29967,29962,29962,29984,29985,29988,29989,29989,29983,29983,29984]} 1. d4 {[%emt 0:00:32]} d5 {[%emt 0:00:31]} 2. c4 {[%emt 0:00:14]} c6 {[%emt 0:00:22]} 3. Nf3 {[%emt 0:00:56]} Nf6 {[%emt 0:00:35]} 4. e3 {[%emt 0:02:20]} e6 {[%emt 0:01:01]} 5. Qc2 {[%emt 0:00:30]} Be7 {[%emt 0:01:38]} 6. b3 {[%emt 0:01:57]} Nbd7 {[%emt 0:02:55][%cal Bb8d7,Bd7f8,Bf8g6][%mdl 32]} 7. Bd3 {[%emt 0:00:52]} O-O {[%emt 0:02:02]} 8. Bb2 {[%emt 0:03:21]} Re8 {[%emt 0:02:13]} 9. O-O {[%emt 0:01:37]} Nf8 {[%emt 0:01:44]} 10. Nbd2 {[%emt 0:02:05][%cal Bb1d2,Bd2f3,Bf3g5][%mdl 32]} Ng6 {[%emt 0:01:15]} 11. Ne5 {[%emt 0:03:36]} Bd7 {[%emt 0:03:22]} 12. Ndf3 {[%emt 0:06:17]} Rf8 {[%emt 0:04:22]} 13. Ng5 {[%emt 0:06:53]} (13. c5 {simplifies} Be8 14. b4 Nd7 15. Nxd7 Bxd7 16. g3) 13... dxc4 {[%emt 0:12:33]} 14. bxc4 {[%emt 0:02:25]} b5 {[%emt 0:00:20]} 15. cxb5 {[%emt 0:22:34]} (15. Rab1 {seems wilder.} Rb8 16. Rfc1 bxc4 17. Bxc4 Nd5 18. Nxg6 hxg6 19. Nf3) 15... cxb5 {[%emt 0:02:02]} 16. Rac1 {[%emt 0:06:42] White is much more active.} (16. f4 $16) 16... Nd5 $1 $11 {[%emt 0:01:30]} 17. Ngxf7 {[%emt 0:02:04]} Rxf7 {[%emt 0:01:43]} 18. Nxf7 {[%emt 0:00:28]} Kxf7 {[%emt 0:00:20]} 19. Bxg6+ {[%emt 0:01:07]} (19. Qe2 $11 {keeps the balance.}) 19... hxg6 $17 {[%emt 0:03:36]} 20. e4 {[%emt 0:00:11]} Rc8 {[%emt 0:01:56]} 21. Qb3 {[%emt 0:01:40]} Rxc1 {[%emt 0:01:17]} 22. Rxc1 {[%emt 0:01:37]} Nb6 {[%emt 0:00:11]} 23. d5 {[%emt 0:01:54]} (23. Ba3 $15) 23... exd5 {[%emt 0:00:49]} 24. exd5 {[%emt 0:00:28]} Nc4 {[%emt 0:00:40]} 25. Bc3 {[%emt 0:06:30]} (25. d6 $142 Bxd6 26. Qf3+ Bf5 27. Qd5+ Be6 28. Qxb5 Nxb2 29. Qxb2) 25... Bd6 {[%emt 0:05:30]} 26. Bb4 {[%emt 0:01:16]} (26. Ba1 $17) 26... Qg5 $1 $19 {[%emt 0:01:48][%csl LRc1,LRd5]} 27. Rd1 $2 {[%emt 0:04:51]} (27. Re1 {was forced.}) 27... Be5 {[%emt 0:07:17] A strong pair of Bishops.} (27... Bxb4 $142 28. Qxb4 Bh3) 28. Qf3+ {[%emt 0:03:30]} Kg8 {[%emt 0:01:51]} 29. d6 {[%emt 0:01:22]} Kh7 {[%emt 0:06:51]} 30. h3 {[%emt 0:03:57] Prevents Bg4} a5 {[%emt 0:00:53]} (30... Qf5 31. Qxf5 gxf5) 31. Bc3 $17 {[%emt 0:00:37]} Bxc3 {[%emt 0:01:40]} (31... Bxd6 $2 32. Qf7 Be5 (32... Bxh3 33. Qxg7#) 33. f4 $18) (31... Nxd6 $2 32. Bxe5 Qxe5 33. Qf8 $18) 32. Qxc3 {[%emt 0:00:05][%cal Oa2a4]} Qc5 {[%emt 0:03:04]} (32... a4 $1 $15 {deserves consideration.}) 33. Qg3 $11 {[%emt 0:01:43]} a4 {[%emt 0:03:09]} 34. Re1 $2 {[%emt 0:03:45] [#]} ({White should try} 34. Qh4+ $11 Qh5 35. Qd4) 34... Qxd6 $2 {[%emt 0:02:14]} (34... Nxd6 $2 35. Qh4+ Qh5 36. Qd4 Bxh3 37. Qxd6 $18) ({Better is} 34... Qd4 $1 $17 {[%cal Ob5b4] And now ...b4! would win.} 35. Re7 Bf5 (35... Qxd6 $2 36. Qxd6 Nxd6 37. Rxd7 $18)) 35. Qxd6 $14 {[%emt 0:04:03]} Nxd6 {[%emt 0:00:06]} 36. Rd1 {[%emt 0:00:26]} Be6 $1 {[%emt 0:00:09]} 37. Rxd6 {[%emt 0:00:06]} Bxa2 {[%emt 0:00:07][%mdl 4096] Endgame KR-KB} 38. Ra6 {[%emt 0:00:46]} Bc4 {[%emt 0:02:55]} 39. f4 {[%emt 0:00:53]} (39. h4 $16) 39... Bd3 {[%emt 0:01:13]} (39... Bb3 $1 $11 {and Black stays safe.} 40. Kf2 b4) 40. Kf2 {[%emt 0:01:07]} Kg8 {[%emt 0:00:11]} (40... Bc2) 41. g3 $18 {[%emt 0:00:59]} Kf7 {[%emt 0:00:11]} 42. Ke3 {[%emt 0:00:12]} Bf1 $2 {[%emt 0:00:58]} (42... Bf5 {was called for.} 43. Ra7+ Ke8) 43. h4 {[%emt 0:00:24]} Bh3 {[%emt 0:01:53]} 44. Kd4 {[%emt 0:00:53]} Bf1 {[%emt 0:01:03]} (44... Be6 $142 45. Ra5 Bc4) 45. Ke5 {[%emt 0:00:49]} Be2 {[%emt 0:00:41]} 46. Ra7+ {[%emt 0:00:04]} Kg8 {[%emt 0:00:11]} 47. Kd6 {[%emt 0:01:02]} Bd3 {[%emt 0:00:39]} (47... Bg4 $142 48. Re7 Bf5 (48... b4 $2 49. Re4 $18)) 48. Kc5 {[%emt 0:00:24]} (48. g4 $142 Bc2 49. Kd5 (49. Kc5 Bd3 $18)) 48... Be2 {[%emt 0:00:20]} 49. Kd6 $2 {[%emt 0:01:10]} (49. Ra8+ Kf7 50. Ra7+ Kg8 51. g4) 49... Bd3 $1 {[%emt 0:00:12]} 50. g4 {[%emt 0:00:37]} Be2 $2 {[%emt 0:00:39]} (50... Bc2) 51. f5 $2 {[%emt 0:00:31]} (51. g5 $18 {and Ke7 should not be overlooked} Bd3 52. Ra5) 51... gxf5 $16 {[%emt 0:00:20]} 52. gxf5 {[%emt 0:00:42]} Bd3 {[%emt 0:00:12]} 53. Ke5 {[%emt 0:00:22]} Be2 $2 {[%emt 0:00:21][%mdl 8192]} (53... Bc2 $16) 54. Kf4 {[%emt 0:00:56]} Bc4 {[%emt 0:01:11]} 55. Kg5 {[%emt 0:00:35]} Bf7 {[%emt 0:01:07]} 56. Ra8+ {[%emt 0:00:33]} Kh7 {[%emt 0:00:10] [#]} 57. h5 $1 {[%emt 0:00:27]} Bc4 {[%emt 0:00:52]} 58. Ra7 {[%emt 0:00:20]} Kg8 {[%emt 0:00:21]} 59. Kg6 {[%emt 0:00:16][%cal Ra7a8]} Kf8 {[%emt 0:00:11]} 60. Ra8+ {[%emt 0:00:53]} Ke7 {[%emt 0:00:08]} 61. Kxg7 {[%emt 0:00:07]} 1-0